fUST/lending_fUST_20250115
["ID","MTS","AMOUNT","RATE_DAILY","PERIOD"]
[349030860,1736945433010,-500.0,0.00020674,3]
[349030862,1736945433019,-500.0,0.00020674,3]
[349030864,1736945433028,-1705.72,0.00020809,3]
[349030866,1736945433038,-175.478,0.00020811,2]
[349030868,1736945433048,-500.0,0.00020811,3]
[349030870,1736945433058,-342.96,0.00020811,3]
[349030872,1736945433068,-500.0,0.00020811,3]
[349030874,1736945433078,-420.0,0.00020869,2]
[349030876,1736945433088,-330.71025872,0.00020891,2]
[349030878,1736945433098,-1705.72,0.00020946,3]
[349030880,1736945433108,-500.0,0.00020948,3]
[349030882,1736945433118,-500.0,0.00020948,3]
[349030884,1736945433129,-1705.72,0.00021083,3]
[349030886,1736945433139,-500.0,0.00021085,3]
[349030888,1736945433149,-500.0,0.00021085,3]
[349030890,1736945433159,-1705.72,0.0002122,3]
[349030892,1736945433169,-500.0,0.00021222,3]
[349030894,1736945433179,-500.0,0.00021222,3]
[349030896,1736945433189,-1705.72,0.00021357,3]
[349030898,1736945433203,-500.0,0.00021359,3]
[349030900,1736945433214,-500.0,0.00021359,3]
[349030902,1736945433224,-152.04052283,0.0002144,2]
[349030904,1736945433236,-1705.72,0.00021494,3]
[349030906,1736945433246,-500.0,0.00021496,3]
[349030908,1736945433257,-500.0,0.00021496,3]
[349030910,1736945433267,-1705.72,0.00021631,3]
[349030913,1736945433282,-500.0,0.00021633,3]
[349030914,1736945433292,-500.0,0.00021633,3]
[349030916,1736945433301,-1705.72,0.00021768,3]
[349030918,1736945433311,-500.0,0.0002177,3]
[349030921,1736945433323,-500.0,0.0002177,3]
[349030923,1736945433332,-1765.9,0.000219,2]
[349030925,1736945433342,-210.80156027,0.000219,2]
[349030927,1736945433352,-151.0,0.00021904,2]
[349030928,1736945433361,-1705.72,0.00021905,3]
[349030930,1736945433372,-500.0,0.00021907,3]
[349030932,1736945433383,-1277.52,0.00021917,2]
[349030935,1736945433392,-1277.52,0.00021917,2]
[349030937,1736945433402,-1277.52,0.00021917,2]
[349030939,1736945433411,-1277.52,0.00021917,2]
[349030941,1736945433421,-1277.52,0.00021917,2]
[349030943,1736945433431,-1277.52,0.00021917,2]
[349030945,1736945433440,-1277.52,0.00021917,2]
[349030947,1736945433450,-1277.52,0.00021917,2]
[349030948,1736945433459,-1277.52,0.00021917,2]
[349030951,1736945433469,-1277.52,0.00021917,2]
[349030953,1736945433479,-1277.52,0.00021917,2]
[349030955,1736945433489,-1277.52,0.00021917,2]
[349030957,1736945433499,-1277.52,0.00021917,2]
[349030959,1736945433509,-1277.52,0.00021917,2]
[349030961,1736945433519,-1277.52,0.00021917,2]
[349030963,1736945433529,-163.0,0.00022,2]
[349030965,1736945433539,-1705.72,0.00022042,3]
[349030967,1736945433549,-500.0,0.00022044,3]
[349030969,1736945433558,-1277.52,0.00022049,2]
[349030971,1736945433568,-395.0,0.00022057,2]
[349030973,1736945433578,-2070.0,0.00022057,2]
[349030975,1736945433588,-536.0,0.00022057,2]
[349030977,1736945433597,-210.8015602,0.00022122,2]
[349030979,1736945433606,-1705.72,0.00022179,3]
[349030981,1736945433618,-500.0,0.00022181,3]
[349030983,1736945433629,-1277.52,0.00022186,2]
[349030985,1736945433638,-1705.72,0.00022316,3]
[349030987,1736945433647,-461.92676208,0.00022318,3]
[349030989,1736945433656,-1277.52,0.00022323,2]
[349030991,1736945433666,-210.8015602,0.00022344,2]
[349030992,1736945433675,-300.0,0.000224,10]
[349030995,1736945433684,-1705.72,0.00022453,3]
[349030996,1736945433695,-1277.52,0.0002246,2]
[349030998,1736945433704,-329.988,0.0002251,2]
[349031001,1736945433714,-210.8015602,0.00022567,2]
[349031003,1736945433724,-1705.72,0.0002259,3]
[349031004,1736945433734,-1277.52,0.00022597,2]
[349031006,1736945433743,-1705.72,0.00022727,3]
[349031008,1736945433753,-1277.52,0.00022734,2]
[349031010,1736945433763,-587.0,0.00022744,2]
[349031012,1736945433773,-210.8015602,0.00022789,2]
[349031014,1736945433784,-1705.72,0.00022864,3]
[349031017,1736945433794,-1277.52,0.00022871,2]
[349031019,1736945433803,-150.30833027,0.00022901,2]
[349031021,1736945433814,-1200.0,0.00022969,2]
[349031023,1736945433823,-7438.69753278,0.00023,3]
[349031025,1736945433833,-2866.91294898,0.00023,2]
[349031026,1736945433843,-1705.72,0.00023001,3]
[349031029,1736945433854,-1277.52,0.00023008,2]
[349031031,1736945433864,-210.8015602,0.00023011,2]
[349031033,1736945433874,-163.0,0.00023014,2]
[349031035,1736945433885,-1705.72,0.00023138,3]
[349031037,1736945433895,-1277.57180556,0.00023145,2]
[349031039,1736945433904,-210.8015602,0.00023233,2]
[349031040,1736945433914,-1705.72,0.00023275,3]
[349031043,1736945433923,-155.0,0.00023373,2]
[349031045,1736945433933,-155.0,0.00023373,2]
[349031046,1736945433942,-190.46,0.00023373,2]
[349031049,1736945433953,-1705.78279287,0.00023412,3]
[349031051,1736945433962,-3789.81751991,0.00023453,2]
[349031053,1736945433972,-210.8015602,0.00023456,2]
[349031055,1736945433982,-316.7923412,0.00023461,2]
[349031057,1736945433991,-2000.0,0.000236,2]
[349031058,1736945434000,-2000.0,0.000236,2]
[349031060,1736945434010,-22630.32,0.00023614,60]
[349031062,1736945434020,-210.8015602,0.00023678,2]
[349031064,1736945434029,-151.77874897,0.00023692,2]
[349031066,1736945434039,-150.68117517,0.00023692,2]
[349031069,1736945434049,-150.21,0.00023692,2]
[349031071,1736945434058,-150.21,0.00023692,2]
[349031073,1736945434067,-155.0,0.00023692,2]
[349031075,1736945434077,-155.0,0.00023692,2]
[349031077,1736945434087,-188.0,0.00023692,2]
[349031079,1736945434096,-151.0,0.00023716,7]
[349031081,1736945434106,-1785.0,0.00023727,6]
[349031083,1736945434116,-2780.47720638,0.00023728,5]
[349031085,1736945434126,-2274.0598195,0.00023728,5]
[349031087,1736945434136,-29713.11135491,0.00023728,61]
[349031999,1736945443389,-500.0,0.00020263,3]
[349032001,1736945443399,-500.0,0.000204,3]
[349032003,1736945443408,-500.0,0.00020537,3]
[349032005,1736945443418,-500.0,0.00020674,3]
[349032007,1736945443427,-500.0,0.00020811,3]
[349032009,1736945443436,-330.71025872,0.00021347,2]
[349032011,1736945443445,-330.71025872,0.00021803,2]
[349032013,1736945443454,-239.33799561,0.00023613,2]
[349032015,1736945443463,-1200.0,0.00023728,2]
[349032017,1736945443473,-9232.15383695,0.00023728,61]
[349032319,1736945446541,-500.0,0.00020948,3]
[349032321,1736945446551,-516.44,0.00021085,3]
[349032323,1736945446560,-395.0,0.00022057,2]
[349032324,1736945446569,-56085.43799777,0.00023728,61]
[349035074,1736945944715,175.312586,0.00013973,2]
[349035124,1736946632742,-292.63362139,0.000189,2]
[349035127,1736946632752,-300.0,0.00019362,2]
[349035129,1736946632762,-12441.3430489,0.00019363,2]
[349035131,1736946632771,-688.8296718,0.00019477,2]
[349035133,1736946632781,-287.05295922,0.0002,2]
[349035135,1736946632791,-287.0529592,0.0002,2]
[349035137,1736946632800,-500.0,0.00020261,3]
[349035139,1736946632809,-500.0,0.00020261,3]
[349035141,1736946632819,-500.0,0.00020261,3]
[349035142,1736946632828,-500.0,0.00020261,3]
[349035144,1736946632838,-500.0,0.00020262,3]
[349035146,1736946632849,-500.0,0.00020262,3]
[349035149,1736946632858,-500.0,0.00020262,3]
[349035151,1736946632868,-500.0,0.00020262,3]
[349035152,1736946632877,-500.0,0.00020262,3]
[349035154,1736946632887,-500.0,0.00020263,3]
[349035157,1736946632896,-500.0,0.00020263,3]
[349035159,1736946632906,-588.32,0.00020263,3]
[349035161,1736946632916,-500.0,0.00020263,3]
[349035163,1736946632925,-549.57,0.00020263,3]
[349035165,1736946632934,-206.94035668,0.00020296,2]
[349035167,1736946632944,-533.2,0.00020395,3]
[349035168,1736946632953,-500.0,0.00020396,3]
[349035170,1736946632962,-218.72673971,0.00020396,3]
[349035172,1736946632972,-322.61716554,0.00020396,3]
[349035174,1736946632981,-500.0,0.00020396,3]
[349035177,1736946632990,-500.0,0.00020396,3]
[349035179,1736946632999,-250.14272258,0.00020396,3]
[349035181,1736946633011,-249.85727742,0.00020396,3]
[349035184,1736946633020,-639.61,0.00020396,3]
[349035187,1736946633032,-500.0,0.00020396,3]
[349035189,1736946633043,-500.0,0.00020396,3]
[349035192,1736946633052,-500.0,0.00020396,3]
[349035195,1736946633061,-500.0,0.00020396,3]
[349035198,1736946633071,-500.0,0.00020396,3]
[349035201,1736946633081,-500.0,0.00020396,3]
[349035204,1736946633090,-500.0,0.00020396,3]
[349035206,1736946633099,-641.36,0.00020396,3]
[349035210,1736946633111,-509.61631367,0.00020396,3]
[349035212,1736946633121,-500.0,0.00020396,3]
[349035217,1736946633130,-500.0,0.00020396,3]
[349035219,1736946633140,-500.0,0.00020396,3]
[349035222,1736946633149,-309.76,0.00020396,2]
[349035225,1736946633158,-500.0,0.00020396,3]
[349035228,1736946633167,-500.0,0.00020396,3]
[349035232,1736946633176,-500.0,0.00020396,3]
[349035235,1736946633186,-500.0,0.00020396,3]
[349035236,1736946633195,-500.0,0.00020396,3]
[349035240,1736946633205,-182.17404814,0.00020396,3]
[349035244,1736946633215,-500.0,0.00020396,3]
[349035247,1736946633225,-500.0,0.00020396,3]
[349035249,1736946633235,-500.0,0.00020396,3]
[349035252,1736946633245,-500.0,0.00020396,3]
[349035255,1736946633254,-500.0,0.00020396,3]
[349035258,1736946633264,-500.0,0.00020396,3]
[349035262,1736946633274,-500.0,0.00020396,3]
[349035264,1736946633284,-500.0,0.00020396,3]
[349035267,1736946633294,-500.0,0.00020396,3]
[349035271,1736946633304,-500.0,0.00020396,3]
[349035274,1736946633314,-500.0,0.00020396,3]
[349035276,1736946633323,-500.0,0.00020396,3]
[349035278,1736946633332,-500.0,0.00020396,3]
[349035282,1736946633342,-500.0,0.00020396,3]
[349035286,1736946633354,-500.0,0.00020396,3]
[349035289,1736946633363,-500.0,0.00020396,3]
[349035292,1736946633373,-372.91937508,0.00020396,3]
[349035295,1736946633382,-500.0,0.00020396,3]
[349035298,1736946633391,-188.77679239,0.00020396,3]
[349035301,1736946633401,-1479.5,0.00020396,3]
[349035304,1736946633412,-500.0,0.00020396,3]
[349035307,1736946633421,-500.0,0.00020396,3]
[349035310,1736946633430,-500.0,0.00020396,3]
[349035313,1736946633439,-500.0,0.00020396,3]
[349035316,1736946633450,-500.0,0.00020396,3]
[349035319,1736946633459,-500.0,0.00020396,3]
[349035322,1736946633468,-500.0,0.00020396,3]
[349035325,1736946633478,-500.0,0.00020396,3]
[349035328,1736946633487,-500.0,0.00020396,3]
[349035331,1736946633496,-500.0,0.00020396,3]
[349035334,1736946633506,-500.0,0.00020396,3]
[349035337,1736946633516,-251.06,0.00020396,3]
[349035340,1736946633525,-500.0,0.00020396,3]
[349035342,1736946633535,-2116.92,0.00020396,3]
[349035344,1736946633544,-500.0,0.00020396,3]
[349035345,1736946633553,-500.0,0.00020396,3]
[349035348,1736946633563,-500.0,0.00020396,3]
[349035352,1736946633573,-500.0,0.00020396,3]
[349035354,1736946633582,-500.0,0.00020396,3]
[349035357,1736946633591,-500.0,0.00020396,3]
[349035360,1736946633601,-500.0,0.00020396,3]
[349035363,1736946633612,-500.0,0.00020396,3]
[349035366,1736946633621,-500.0,0.00020399,3]
[349035368,1736946633631,-500.0,0.00020399,3]
[349035371,1736946633641,-500.0,0.00020399,3]
[349035373,1736946633651,-500.0,0.000204,3]
[349035375,1736946633660,-588.32,0.000204,3]
[349035377,1736946633670,-549.57,0.000204,3]
[349035379,1736946633679,-175.478,0.00020402,2]
[349035381,1736946633689,-235.78660761,0.00020532,2]
[349035383,1736946633698,-500.0,0.00020532,2]
[349035385,1736946633707,-500.0,0.00020532,2]
[349035387,1736946633717,-258.78651965,0.00020532,2]
[349035389,1736946633726,-500.0,0.00020532,2]
[349035390,1736946633735,-500.0,0.00020532,2]
[349035392,1736946633744,-348.30074769,0.00020532,2]
[349035395,1736946633755,-392.04725626,0.00020532,2]
[349035397,1736946633765,-371.05,0.00020533,3]
[349035399,1736946633774,-235.3,0.00020533,3]
[349035401,1736946633783,-500.0,0.00020533,3]
[349035403,1736946633793,-500.0,0.00020533,3]
[349035405,1736946633802,-500.0,0.00020533,3]
[349035407,1736946633812,-500.0,0.00020533,3]
[349035409,1736946633822,-585.22,0.00020533,3]
[349035411,1736946633832,-207.21,0.00020533,3]
[349035413,1736946633841,-500.0,0.00020533,3]
[349035415,1736946633851,-500.0,0.00020533,3]
[349035417,1736946633861,-500.0,0.00020533,3]
[349035419,1736946633870,-500.0,0.00020533,3]
[349035421,1736946633880,-500.0,0.00020533,3]
[349035423,1736946633888,-500.0,0.00020533,3]
[349035425,1736946633897,-206.76,0.00020533,3]
[349035427,1736946633907,-1479.5,0.00020533,3]
[349035429,1736946633917,-288.06,0.00020533,3]
[349035431,1736946633926,-500.0,0.00020533,3]
[349035433,1736946633936,-500.0,0.00020533,3]
[349035435,1736946633945,-242.24,0.00020533,3]
[349035437,1736946633954,-500.0,0.00020533,3]
[349035439,1736946633964,-500.0,0.00020533,3]
[349035441,1736946633974,-2116.92,0.00020533,3]
[349035443,1736946633983,-500.0,0.00020533,3]
[349035445,1736946633993,-500.0,0.00020533,3]
[349035447,1736946634002,-500.0,0.00020533,3]
[349035449,1736946634012,-202.78,0.00020533,3]
[349035451,1736946634021,-500.0,0.00020536,3]
[349035452,1736946634031,-500.0,0.00020536,3]
[349035454,1736946634042,-500.0,0.00020536,3]
[349035456,1736946634051,-500.0,0.00020537,3]
[349035459,1736946634061,-588.32,0.00020537,3]
[349035460,1736946634070,-549.57,0.00020537,3]
[349035462,1736946634080,-500.0,0.0002067,3]
[349035465,1736946634089,-500.0,0.0002067,3]
[349035466,1736946634099,-500.0,0.0002067,3]
[349035468,1736946634108,-444.49,0.0002067,3]
[349035471,1736946634120,-529.01,0.0002067,3]
[349035473,1736946634129,-500.0,0.0002067,3]
[349035474,1736946634139,-500.0,0.0002067,3]
[349035476,1736946634148,-500.0,0.0002067,3]
[349035478,1736946634157,-500.0,0.0002067,3]
[349035480,1736946634167,-1479.5,0.0002067,3]
[349035482,1736946634177,-500.0,0.0002067,3]
[349035484,1736946634186,-204.97,0.0002067,3]
[349035486,1736946634195,-344.15000004,0.0002067,3]
[349035488,1736946634205,-609.36,0.0002067,3]
[349035490,1736946634215,-2116.92,0.0002067,3]
[349035492,1736946634224,-500.0,0.0002067,3]
[349035494,1736946634233,-610.27,0.0002067,3]
[349035496,1736946634242,-500.0,0.0002067,3]
[349035498,1736946634251,-500.0,0.00020673,3]
[349035500,1736946634260,-223.65,0.00020673,3]
[349035502,1736946634269,-500.0,0.00020673,3]
[349035504,1736946634279,-500.0,0.00020674,3]
[349035506,1736946634289,-588.32,0.00020674,3]
[349035508,1736946634298,-549.57,0.00020674,3]
[349035510,1736946634309,-206.94035662,0.00020773,2]
[349035512,1736946634319,-1553.0,0.0002079,2]
[349035515,1736946634329,-500.0,0.00020807,3]
[349035517,1736946634339,-500.0,0.00020807,3]
[349035519,1736946634349,-404.27,0.00020807,3]
[349035520,1736946634358,-500.0,0.00020807,3]
[349035523,1736946634368,-500.0,0.00020807,3]
[349035525,1736946634377,-500.0,0.00020807,3]
[349035527,1736946634387,-500.0,0.00020807,3]
[349035529,1736946634397,-1479.5,0.00020807,3]
[349035531,1736946634407,-628.94,0.00020807,3]
[349035532,1736946634416,-2116.92,0.00020807,3]
[349035534,1736946634425,-500.0,0.00020807,3]
[349035536,1736946634434,-444.15,0.00020807,3]
[349035538,1736946634444,-500.0,0.0002081,3]
[349035540,1736946634454,-500.0,0.0002081,3]
[349035542,1736946634463,-500.0,0.00020811,3]
[349035544,1736946634472,-588.32,0.00020811,3]
[349035546,1736946634482,-549.57,0.00020811,3]
[349035548,1736946634491,-203.92533239,0.000209,2]
[349035550,1736946634501,-159.78,0.00020918,10]
[349035552,1736946634510,-500.0,0.00020944,3]
[349035554,1736946634520,-480.78,0.00020944,3]
[349035556,1736946634530,-500.0,0.00020944,3]
[349035558,1736946634539,-500.0,0.00020944,3]
[349035560,1736946634549,-500.0,0.00020944,3]
[349035562,1736946634559,-360.11,0.00020944,3]
[349035564,1736946634568,-691.73023145,0.00020944,3]
[349035566,1736946634581,-408.09343879,0.00020944,3]
[349035568,1736946634593,-379.67632976,0.00020944,3]
[349035570,1736946634603,-2116.92,0.00020944,3]
[349035572,1736946634612,-500.0,0.00020944,3]
[349035574,1736946634621,-500.0,0.00020947,3]
[349035576,1736946634632,-500.0,0.00020947,3]
[349035578,1736946634641,-572.38,0.00020948,3]
[349035580,1736946634650,-588.32,0.00020948,3]
[349035582,1736946634660,-549.57,0.00020948,3]
[349035584,1736946634670,-1794.0,0.00021,2]
[349035586,1736946634679,-500.0,0.00021081,3]
[349035588,1736946634689,-445.55,0.00021081,3]
[349035590,1736946634699,-327.42,0.00021081,3]
[349035592,1736946634708,-500.0,0.00021081,3]
[349035595,1736946634728,-1479.5,0.00021081,3]
[349035598,1736946634738,-2116.92,0.00021081,3]
[349035600,1736946634748,-500.0,0.00021081,3]
[349035602,1736946634759,-500.0,0.00021084,3]
[349035604,1736946634770,-500.0,0.00021084,3]
[349035606,1736946634780,-588.32,0.00021085,3]
[349035608,1736946634789,-549.57,0.00021085,3]
[349035610,1736946634799,-420.0,0.00021097,2]
[349035612,1736946634808,-203.92533224,0.000211,2]
[349035614,1736946634818,-500.0,0.00021218,3]
[349035616,1736946634828,-239.7,0.00021218,3]
[349035618,1736946634837,-1479.5,0.00021218,3]
[349035620,1736946634847,-2116.92,0.00021218,3]
[349035622,1736946634857,-500.0,0.00021218,3]
[349035624,1736946634866,-500.0,0.00021221,3]
[349035626,1736946634876,-258.06,0.00021221,3]
[349035628,1736946634886,-588.32,0.00021222,3]
[349035630,1736946634895,-549.57,0.00021222,3]
[349035632,1736946634905,-115.00922059,0.00021249,2]
[349035635,1736946634918,-91.93113603,0.00021249,2]
[349035637,1736946634927,-203.92533224,0.000213,2]
[349035639,1736946634938,-420.89,0.00021355,3]
[349035641,1736946634947,-1479.5,0.00021355,3]
[349035643,1736946634957,-2116.92,0.00021355,3]
[349035645,1736946634966,-500.0,0.00021355,3]
[349035647,1736946634976,-425.13,0.00021358,3]
[349035649,1736946634985,-588.32,0.00021359,3]
[349035651,1736946634995,-549.57,0.00021359,3]
[349035653,1736946635004,-1479.5,0.00021492,3]
[349035655,1736946635014,-2116.92,0.00021492,3]
[349035657,1736946635023,-500.0,0.00021492,3]
[349035659,1736946635033,-588.32,0.00021496,3]
[349035661,1736946635044,-549.57,0.00021496,3]
[349035663,1736946635053,-203.92533224,0.000215,2]
[349035665,1736946635063,-1479.5,0.00021629,3]
[349035667,1736946635072,-2116.92,0.00021629,3]
[349035669,1736946635082,-500.0,0.00021629,3]
[349035671,1736946635091,-588.32,0.00021633,3]
[349035673,1736946635106,-549.57,0.00021633,3]
[349035675,1736946635115,-203.92533224,0.000217,2]
[349035677,1736946635125,-206.94035662,0.00021726,2]
[349035680,1736946635135,-1479.5,0.00021766,3]
[349035681,1736946635149,-2116.92,0.00021766,3]
[349035684,1736946635159,-500.0,0.00021766,3]
[349035685,1736946635168,-588.32,0.0002177,3]
[349035687,1736946635177,-549.57,0.0002177,3]
[349035690,1736946635187,-1634.68,0.000219,2]
[349035692,1736946635196,-203.92533224,0.000219,2]
[349035693,1736946635205,-1479.5,0.00021903,3]
[349035695,1736946635214,-2116.92,0.00021903,3]
[349035698,1736946635224,-500.0,0.00021903,3]
[349035700,1736946635234,-588.32,0.00021907,3]
[349035702,1736946635243,-549.57,0.00021907,3]
[349035704,1736946635253,-1000.47476997,0.00021917,2]
[349035718,1736946635376,-163.0,0.00022,2]
[349035720,1736946635387,-1479.5,0.0002204,3]
[349035722,1736946635396,-2116.92,0.0002204,3]
[349035724,1736946635406,-500.0,0.0002204,3]
[349035726,1736946635415,-588.32,0.00022044,3]
[349035728,1736946635424,-549.57,0.00022044,3]
[349035730,1736946635433,-298.211,0.0002206,2]
[349035732,1736946635443,-203.92533224,0.000221,2]
[349035734,1736946635452,-1479.5,0.00022177,3]
[349035736,1736946635462,-2116.92,0.00022177,3]
[349035738,1736946635471,-500.0,0.00022177,3]
[349035740,1736946635480,-588.32,0.00022181,3]
[349035742,1736946635490,-549.57,0.00022181,3]
[349035744,1736946635500,-206.94035662,0.00022202,2]
[349035746,1736946635510,-203.92533224,0.000223,2]
[349035748,1736946635519,-388.08038732,0.00022314,3]
[349036068,1736946638594,-499.77566816,0.00021354,2]
[349036070,1736946638606,-0.22433184,0.00021354,2]
[349036072,1736946638618,-184.87895735,0.00021354,2]
[349036074,1736946638628,-173.80913197,0.00021354,2]
[349036076,1736946638637,-253.29431084,0.00021354,2]
[349036078,1736946638647,-1091.41961268,0.00022314,3]
[349036079,1736946638657,-2116.92,0.00022314,3]
[349036081,1736946638666,-500.0,0.00022314,3]
[349036083,1736946638676,-588.32,0.00022318,3]
[349036085,1736946638685,-549.57,0.00022318,3]
[349036087,1736946638694,-300.0,0.000224,10]
[349036089,1736946638703,-1268.44089404,0.00022451,3]
[349036091,1736946638715,-211.05910596,0.00022451,3]
[349036093,1736946638724,-1092.72037925,0.00022451,3]
[349036095,1736946638735,-1024.19962075,0.00022451,3]
[349036097,1736946638744,-500.0,0.00022451,3]
[349036099,1736946638754,-385.36740317,0.00022453,4]
[349036284,1736946640770,-500.0,0.00020396,3]
[349036285,1736946640780,-500.0,0.00020396,3]
[349036286,1736946640789,-500.0,0.00020533,3]
[349036287,1736946640798,-1167.63259683,0.00022453,4]
[349036288,1736946640807,-588.32,0.00022455,3]
[349036289,1736946640817,-549.57,0.00022455,3]
[349036290,1736946640826,-203.92533224,0.000225,2]
[349036291,1736946640835,-336.79,0.0002254,2]
[349036292,1736946640844,-1479.5,0.00022588,3]
[349036293,1736946640854,-2116.92,0.00022588,3]
[349036294,1736946640863,-256.7,0.00022588,3]
[349036295,1736946640872,-588.32,0.00022592,3]
[349036296,1736946640881,-549.57,0.00022592,3]
[349036298,1736946640891,-206.94035662,0.00022679,2]
[349036299,1736946640900,-203.92533224,0.000227,2]
[349036301,1736946640911,-1479.5,0.00022725,3]
[349036303,1736946640920,-2116.92,0.00022725,3]
[349036305,1736946640930,-588.32,0.00022729,3]
[349036307,1736946640939,-549.57,0.00022729,3]
[349036309,1736946640949,-1479.5,0.00022862,3]
[349036311,1736946640959,-2116.92,0.00022862,3]
[349036313,1736946640969,-588.32,0.00022866,3]
[349036315,1736946640978,-549.57,0.00022866,3]
[349036317,1736946640987,-6387.65157864,0.00022892,2]
[349036320,1736946640997,-5000.0,0.00022892,2]
[349036321,1736946641006,-5000.0,0.00022892,2]
[349036323,1736946641016,-5000.0,0.00022892,2]
[349036325,1736946641025,-1396.03703863,0.00022892,2]
[349036611,1736946643730,-500.0,0.00020532,2]
[349036613,1736946643740,-500.0,0.00020532,2]
[349036615,1736946643750,-500.0,0.00020533,3]
[349036617,1736946643760,-3603.96296137,0.00022892,2]
[349036619,1736946643770,-203.92533224,0.000229,2]
[349036621,1736946643779,-1200.0,0.00022945,2]
[349036623,1736946643790,-587.0,0.00022987,2]
[349036625,1736946643800,-1479.5,0.00022999,3]
[349036627,1736946643810,-2116.92,0.00022999,3]
[349036629,1736946643820,-7438.69753278,0.00023,2]
[349036632,1736946643830,-7438.69753278,0.00023,3]
[349036635,1736946643840,-316.48786633,0.00023,2]
[349036637,1736946643850,-588.32,0.00023003,3]
[349036639,1736946643860,-549.57,0.00023003,3]
[349036641,1736946643870,-153.0,0.00023034,2]
[349036643,1736946643880,-153.0,0.00023034,2]
[349036645,1736946643889,-153.0,0.00023034,2]
[349036647,1736946643898,-153.0,0.00023034,2]
[349036649,1736946643909,-153.0,0.00023034,2]
[349036651,1736946643919,-153.0,0.00023034,2]
[349036653,1736946643929,-153.0,0.00023034,2]
[349036655,1736946643938,-153.0,0.00023034,2]
[349036657,1736946643948,-153.0,0.00023034,2]
[349036659,1736946643957,-153.0,0.00023034,2]
[349036661,1736946643967,-153.0,0.00023034,2]
[349036663,1736946643976,-153.0,0.00023034,2]
[349036665,1736946643986,-153.0,0.00023034,2]
[349036667,1736946643995,-153.0,0.00023034,2]
[349036669,1736946644004,-153.0,0.00023034,2]
[349036671,1736946644013,-153.0,0.00023051,2]
[349036673,1736946644023,-153.0,0.00023051,2]
[349036674,1736946644032,-153.0,0.00023051,2]
[349036675,1736946644045,-153.0,0.00023051,2]
[349036676,1736946644054,-153.0,0.00023051,2]
[349036677,1736946644063,-153.0,0.00023051,2]
[349036678,1736946644073,-153.0,0.00023051,2]
[349036679,1736946644084,-153.0,0.00023051,2]
[349036680,1736946644093,-153.0,0.00023051,2]
[349036681,1736946644103,-153.0,0.00023051,2]
[349036682,1736946644114,-153.0,0.00023051,2]
[349036683,1736946644123,-153.0,0.00023051,2]
[349036684,1736946644133,-153.0,0.00023051,2]
[349036685,1736946644143,-153.0,0.00023051,2]
[349036686,1736946644152,-153.0,0.00023051,2]
[349036688,1736946644166,-153.0,0.00023051,2]
[349036690,1736946644176,-203.92533224,0.000231,2]
[349036692,1736946644186,-1479.5,0.00023136,3]
[349036694,1736946644196,-2116.92,0.00023136,3]
[349036696,1736946644206,-588.32,0.0002314,3]
[349036698,1736946644215,-549.57,0.0002314,3]
[349036700,1736946644225,-206.94035662,0.00023155,2]